fUST/lending_fUST_20250608
["ID","MTS","AMOUNT","RATE_DAILY","PERIOD"]
[364949054,1749340240440,-229.56495552,0.00022404,2]
[364949055,1749340240450,-743.73,0.00022443,5]
[364949056,1749340240460,-3500.0,0.0002246,2]
[364949057,1749340240469,-1456.318,0.00022462,2]
[364949058,1749340240481,-405.0,0.00022462,2]
[364949059,1749340240490,-430.0,0.00022465,2]
[364949060,1749340240500,-789.02,0.00022465,2]
[364949061,1749340240510,-225.17,0.00022465,2]
[364949062,1749340240520,-413.93675619,0.00022465,2]
[364949063,1749340240531,-440.0,0.00022465,2]
[364949064,1749340240542,-440.0,0.00022465,2]
[364949065,1749340240551,-440.0,0.00022465,2]
[364949066,1749340240563,-660.01,0.00022465,2]
[364949067,1749340240574,-440.0,0.00022465,2]
[364949068,1749340240584,-519.99,0.00022465,2]
[364949069,1749340240593,-1621.72,0.00022468,2]
[364949070,1749340240603,-209.21543319,0.00022484,2]
[364949071,1749340240613,-1810.0,0.00022488,2]
[364949072,1749340240623,-31063.31687473,0.000225,2]
[364949073,1749340240633,-76042.5,0.000225,7]
[364949074,1749340240643,-1151.28,0.000225,7]
[364949075,1749340240653,-213.01382694,0.000225,7]
[364949076,1749340240662,-500.0,0.00022538,2]
[364949077,1749340240671,-600.0,0.00022538,2]
[364949078,1749340240682,-500.0,0.00022538,2]
[364949079,1749340240692,-500.0,0.00022538,2]
[364949080,1749340240702,-500.0,0.00022538,2]
[364949081,1749340240712,-743.73,0.00022543,4]
[364949082,1749340240721,-500.0,0.0002256,2]
[364949083,1749340240731,-503.71372657,0.0002256,2]
[364949084,1749340240741,-500.0,0.00022562,2]
[364949085,1749340240752,-4898.89,0.00022564,30]
[364949086,1749340240761,-5000.0,0.00022564,2]
[364949087,1749340240772,-205.7275655,0.00022592,7]
[364949088,1749340240782,-743.73,0.00022643,4]
[364949089,1749340240793,-151.0,0.000227,10]
[364949090,1749340240805,-789.02,0.00022739,2]
[364949091,1749340240816,-440.0,0.00022739,2]
[364949092,1749340240827,-440.0,0.00022739,2]
[364949093,1749340240837,-440.0,0.00022739,2]
[364949094,1749340240847,-660.01,0.00022739,2]
[364949095,1749340240856,-440.0,0.00022739,2]
[364949096,1749340240866,-519.99,0.00022739,2]
[364949097,1749340240875,-743.73,0.00022743,2]
[364949098,1749340240885,-587.0,0.00022773,2]
[364949099,1749340240896,-3000.0,0.00022782,2]
[364949100,1749340240906,-168.0,0.00022798,2]
[364949101,1749340240915,-168.0,0.00022824,2]
[364949102,1749340240925,-215.0738,0.00022837,2]
[364949103,1749340240934,-743.73,0.00022843,5]
[364949104,1749340240944,-168.0,0.00022875,2]
[364949105,1749340240954,-168.0,0.00022904,2]
[364949106,1749340240964,-4000.0,0.00022942,2]
[364949107,1749340240973,-743.73,0.00022943,4]
[364949108,1749340240983,-205.7275655,0.00022977,8]
[364949109,1749340240993,-435.51195291,0.00022994,2]
[364949110,1749340241003,-1145.0,0.00022997,2]
[364949111,1749340241013,-9000.0,0.00023,2]
[364949112,1749340241023,-2136.64655044,0.00023,30]
[364949113,1749340241033,-160.0,0.00023,3]
[364949114,1749340241043,-229.56495552,0.00023,3]
[364949115,1749340241052,-4000.0,0.00023008,2]
[364949116,1749340241062,-789.02,0.00023013,2]
[364949117,1749340241071,-440.0,0.00023013,2]
[364949118,1749340241081,-440.0,0.00023013,2]
[364949119,1749340241092,-440.0,0.00023013,2]
[364949120,1749340241102,-660.01,0.00023013,2]
[364949121,1749340241111,-440.0,0.00023013,2]
[364949122,1749340241121,-519.99,0.00023013,2]
[364949123,1749340241131,-800.0,0.00023029,2]
[364949124,1749340241141,-326.4381982,0.00023041,2]
[364949125,1749340241150,-572.6068135,0.00023041,2]
[364949126,1749340241160,-743.73,0.00023043,5]
[364949127,1749340241170,-500.0,0.0002305,2]
[364949128,1749340241180,-12500.0,0.0002308,3]
[364949129,1749340241190,-500.0,0.00023086,2]
[364949130,1749340241200,-1200.0,0.00023086,2]
[364949131,1749340241211,-12500.0,0.00023094,3]
[364949132,1749340241220,-492.58,0.000231,7]
[364949133,1749340241230,-160.0,0.000231,3]
[364949134,1749340241240,-151.0,0.000231,9]
[364949135,1749340241249,-12500.0,0.00023102,3]
[364949136,1749340241260,-504.7554611,0.00023108,2]
[364949137,1749340241271,-10728.38318894,0.00023111,2]
[364949138,1749340241281,-12500.0,0.00023111,3]
[364949139,1749340241290,-5000.0,0.00023112,2]
[364949140,1749340241299,-12500.0,0.0002312,3]
[364949141,1749340241309,-743.73,0.00023143,3]
[364949142,1749340241319,-5000.0,0.00023144,2]
[364949143,1749340241329,-423.90693687,0.00023152,2]
[364949144,1749340241338,-7000.0,0.000232,4]
[364949145,1749340241349,-150.0,0.000232,2]
[364949146,1749340241360,-156.899606,0.000232,30]
[364949147,1749340241369,-7000.0,0.00023222,4]
[364949148,1749340241379,-743.73,0.00023243,6]
[364949149,1749340241388,-789.02,0.00023287,2]
[364949150,1749340241400,-440.0,0.00023287,2]
[364949151,1749340241416,-440.0,0.00023287,2]
[364949152,1749340241426,-440.0,0.00023287,2]
[364949153,1749340241435,-660.01,0.00023287,2]
[364949154,1749340241447,-440.0,0.00023287,2]
[364949155,1749340241457,-519.99,0.00023287,2]
[364949156,1749340241467,-800.0,0.0002329,2]
[364949157,1749340241477,-743.73,0.00023343,2]
[364949158,1749340241487,-205.7275655,0.00023362,9]
[364949159,1749340241498,-6000.0,0.00023382,3]
[364949160,1749340241507,-151.0,0.000234,10]
[364949161,1749340241517,-800.0,0.0002342,2]
[364949162,1749340241527,-800.0,0.00023437,2]
[364949163,1749340241536,-743.73,0.00023443,5]
[364949164,1749340241546,-159.79694846,0.00023452,2]
[364949165,1749340241556,-500.0,0.00023469,2]
[364949166,1749340241565,-2415.9831689,0.000235,2]
[364949167,1749340241575,-151.0,0.000235,5]
[364949168,1749340241585,-743.73,0.00023543,4]
[364949169,1749340241594,-1049.79221194,0.00023556,2]
[364949170,1749340241604,-789.02,0.00023561,2]
[364949171,1749340241613,-440.0,0.00023561,2]
[364949172,1749340241623,-201.14255246,0.00023561,2]
[364949173,1749340241632,-440.0,0.00023561,2]
[364949174,1749340241642,-660.01,0.00023561,2]
[364949175,1749340241652,-440.0,0.00023561,2]
[364949176,1749340241662,-519.99,0.00023561,2]
[364949177,1749340241671,-7360.60695664,0.00023578,2]
[364949178,1749340241680,-5000.0,0.00023578,2]
[364949179,1749340241691,-5000.0,0.00023578,2]
[364949180,1749340241701,-5000.0,0.00023578,2]
[364949181,1749340241711,-5000.0,0.00023578,2]
[364949182,1749340241721,-6000.0,0.00023588,3]
[364949183,1749340241730,-1151.28,0.000236,7]
[364949184,1749340241740,-151.0,0.000236,6]
[364949185,1749340241749,-151.0,0.000236,5]
[364949186,1749340241759,-743.73,0.00023643,7]
[364949187,1749340241768,-5000.0,0.0002366,2]
[364949188,1749340241778,-38879.9457796,0.000237,2]
[364949189,1749340241787,-743.73,0.00023743,4]
[364949190,1749340241796,-205.7275655,0.00023746,9]
[364949191,1749340241806,-159.79694846,0.00023753,2]
[364949192,1749340241815,-985.8163853,0.00023753,3]
[364949193,1749340241825,-5000.0,0.00023782,3]
[364949194,1749340241835,-423.90693687,0.000238,3]
[364949195,1749340241844,-76042.5,0.000238,7]
[364949196,1749340241854,-70545.52074374,0.000238,3]
[364949197,1749340241864,-789.02,0.00023835,2]
[364949198,1749340241873,-440.0,0.00023835,2]
[364949199,1749340241883,-440.0,0.00023835,2]
[364949200,1749340241893,-660.01,0.00023835,2]
[364949201,1749340241902,-440.0,0.00023835,2]
[364949202,1749340241912,-519.99,0.00023835,2]
[364949203,1749340241921,-743.73,0.00023843,4]
[364949204,1749340241931,-8014.65146662,0.000239,4]
[364949205,1749340241940,-20138.37,0.000239,11]
[364949206,1749340241949,-115022.03,0.000239,11]
[364949207,1749340241960,-311.81485348,0.000239,2]
[364949208,1749340241969,-800.0,0.00023916,2]
[364949209,1749340241978,-743.73,0.00023943,7]
[364949210,1749340241987,-800.0,0.00023971,2]
[364949211,1749340241997,-1000.0,0.00023999,14]
[364949212,1749340242007,-8973.19584537,0.00024,60]
[364949213,1749340242047,-440.0,0.00019178,2]
[364949214,1749340242057,-150.0,0.00022462,2]
[364949215,1749340242067,-1519.51798089,0.00024,60]
[364949223,1749340246169,-1784.64743273,0.00024,60]
[364949224,1749340246180,-1000.0,0.00024,24]
[364949225,1749340246190,-359.94,0.00024,14]
[364949226,1749340246200,-132454.20147367,0.00024,2]
[364949227,1749340246210,-202.14228928,0.00024,2]
[364949228,1749340246220,-12513.756086,0.00024,2]
[364949229,1749340246230,-229.56495552,0.00024,7]
[364949230,1749340246241,-743.73,0.00024043,5]
[364949231,1749340246250,-159.79694846,0.00024055,2]
[364949232,1749340246261,-2200.0,0.00024078,2]
[364949233,1749340246273,-2000.0,0.000241,2]
[364949234,1749340246283,-3398.83069002,0.000241,30]
[364949235,1749340246295,-1718.89,0.000241,2]
[364949236,1749340246304,-5018.92474773,0.00024106,2]
[364949237,1749340246316,-2506.21996802,0.00024106,2]
[364949238,1749340246325,-789.02,0.00024109,2]
[364949239,1749340246336,-440.0,0.00024109,2]
[364949240,1749340246346,-440.0,0.00024109,2]
[364949241,1749340246357,-660.01,0.00024109,2]
[364949242,1749340246368,-440.0,0.00024109,2]
[364949243,1749340246378,-519.99,0.00024109,2]
[364949244,1749340246389,-205.7275655,0.00024131,10]
[364949245,1749340246399,-743.73,0.00024143,6]
[364949246,1749340246413,-5000.0,0.00024159,2]
[364949247,1749340246422,-5000.0,0.00024159,2]
[364949248,1749340246433,-5000.0,0.00024159,2]
[364949249,1749340246444,-5000.0,0.00024159,2]
[364949250,1749340246455,-5000.0,0.00024159,2]
[364949251,1749340246465,-492.58,0.000242,7]
[364949252,1749340246475,-150.0,0.000242,2]
[364949253,1749340246486,-622.33150284,0.00024205,30]
[364949254,1749340246496,-223.0315306,0.00024206,2]
[364949255,1749340246507,-5000.0,0.00024208,2]
[364949256,1749340246518,-743.73,0.00024243,7]
[364949257,1749340246528,-800.0,0.0002425,2]
[364949258,1749340246538,-38128.68,0.000243,2]
[364949259,1749340246549,-743.73,0.00024343,3]
[364949260,1749340246561,-1246.63843424,0.00024378,27]
[364949261,1749340246572,-2000.0,0.00024383,7]
[364949262,1749340246582,-2000.0,0.00024383,7]
[364949263,1749340246593,-295.34572481,0.00024383,7]
[364949264,1749340246603,-789.02,0.00024383,2]
[364949265,1749340246613,-440.0,0.00024383,2]
[364949266,1749340246625,-440.0,0.00024383,2]
[364949267,1749340246635,-660.01,0.00024383,2]
[364949268,1749340246647,-440.0,0.00024383,2]
[364949269,1749340246657,-519.99,0.00024383,2]
[364949270,1749340246669,-206.0,0.000244,2]
[364949271,1749340246680,-140824.98061029,0.000244,11]
[364949272,1749340246694,-40427.97425659,0.000244,11]
[364949273,1749340246931,-298.15123234,0.000244,11]
[364949275,1749340370276,170.036204,0.00013699,2]
[364949277,1749340823991,-485.36,0.00018,2]
[364949278,1749340826279,-1309.0364491,0.00018,2]
[364949279,1749340830539,-500.0,0.00018,2]
[364949280,1749340832212,-371.3766681,0.00018,2]
[364949281,1749340833897,-440.0,0.00018,2]
[364949282,1749340838485,-254.49744474,0.00018,2]
[364949283,1749340843131,-665.06,0.00018,2]
[364949284,1749340846560,-440.0,0.00018,2]
[364949285,1749340848756,-440.0,0.00018,2]
[364949286,1749340854195,-227.947199,0.00018,2]
[364949287,1749340856004,-1119.8635509,0.00018,2]
[364949288,1749340857626,-218.21914769,0.00018,2]
[364949289,1749340864818,-486.1775398,0.00018,2]
[364949290,1749340868432,-527.9333319,0.00018,2]
[364949291,1749340870724,-225.8752612,0.00018,2]
[364949292,1749340873563,-195.85382659,0.00018,2]
[364949293,1749340875372,-151.06405933,0.00018,2]
[364949294,1749340877738,-166.33929179,0.00018,2]
[364949295,1749340880713,-180.08330764,0.00018,2]
[364949296,1749340882479,-318.02843921,0.00018,2]
[364949297,1749340886226,-428.96289744,0.00018,2]
[364949298,1749340887820,-200.94979533,0.00018,2]
[364949299,1749340890066,-211.22775025,0.00018,2]
[364949300,1749340895006,-158.62,0.00018,2]
[364949301,1749340897211,-20.47403999,0.00018,2]
[364949304,1749341254141,-204.2136669,0.00018053,2]
[364949305,1749341254165,-753.8085931,0.00018107,2]
[364949306,1749341254187,-2330.8465301,0.00018153,2]
[364949307,1749341254210,-300.0,0.00018169,2]
[364949308,1749341254233,-1200.0,0.00018169,2]
[364949309,1749341254256,-300.0,0.00018169,2]
[364949310,1749341254280,-6025.50386598,0.0001817,2]
[364949312,1749341319403,-8546.74858182,0.0001817,2]
[364949313,1749341350193,-263.9692021,0.00018811,2]
[364949314,1749341350216,-201.00758388,0.00018978,2]
[364949315,1749341350241,-194.57515915,0.00018978,2]
[364949316,1749341350264,-812.91771204,0.00019078,2]
[364949317,1749341357426,486.1775398,0.00018242,2]
[364949318,1749341364502,153.93828449,0.000189,2]
[364949319,1749341407559,187.73615808,0.00019078,2]
[364949385,1749341432416,-173.11,0.00019157,2]
[364949387,1749341432427,-300.0,0.00019165,2]
[364949389,1749341432437,-300.0,0.00019165,2]
[364949390,1749341432447,-1100.0,0.00019165,2]
[364949392,1749341432457,-187.64720845,0.00019165,2]
[364949393,1749341432468,-16000.0,0.00019166,2]
[364949394,1749341432478,-173.11,0.00019168,2]
[364949395,1749341432489,-443.13339299,0.00019173,2]
[364949396,1749341432501,-500.0,0.00019173,2]
[364949397,1749341432511,-2737.33527243,0.00019173,2]
[364949398,1749341432522,-623.68810913,0.00019177,2]
[364949399,1749341432532,-430.0,0.00019178,2]
[364949400,1749341432542,-204.04723304,0.00019178,2]
[364949401,1749341432553,-440.0,0.00019178,2]
[364949402,1749341432567,-440.0,0.00019178,2]
[364949403,1749341432577,-440.0,0.00019178,2]
[364949404,1749341432587,-371.65732547,0.00019178,2]
[364949405,1749341432597,-440.0,0.00019178,2]
[364949406,1749341432607,-440.0,0.00019178,2]
[364949407,1749341432617,-440.0,0.00019178,2]
[364949408,1749341432627,-440.0,0.00019178,2]
[364949409,1749341432637,-440.0,0.00019178,2]
[364949410,1749341432647,-430.0,0.00019178,2]
[364949411,1749341432658,-440.0,0.00019178,2]
[364949412,1749341432672,-440.0,0.00019178,2]
[364949413,1749341432682,-440.0,0.00019178,2]
[364949414,1749341432693,-440.0,0.00019178,2]
[364949415,1749341432702,-440.0,0.00019178,2]
[364949416,1749341432712,-440.0,0.00019178,2]
[364949417,1749341432721,-440.0,0.00019178,2]
[364949418,1749341432731,-511.92273979,0.00019178,2]
[364949419,1749341432741,-440.0,0.00019178,2]
[364949420,1749341432751,-440.0,0.00019178,2]
[364949421,1749341432761,-410.0,0.00019178,2]
[364949422,1749341432772,-440.0,0.00019178,2]
[364949423,1749341432783,-440.0,0.00019178,2]
[364949424,1749341432793,-440.0,0.00019178,2]
[364949425,1749341432803,-381.76793635,0.00019178,2]
[364949426,1749341432813,-365.61,0.00019178,2]
[364949427,1749341432825,-440.0,0.00019178,2]
[364949428,1749341432836,-440.0,0.00019178,2]
[364949429,1749341432846,-440.0,0.00019178,2]
[364949430,1749341432856,-440.0,0.00019178,2]
[364949431,1749341432866,-152.52403429,0.00019178,2]
[364949432,1749341432875,-304.53974767,0.00019178,2]
[364949433,1749341432886,-440.0,0.00019178,2]
[364949434,1749341432895,-440.0,0.00019178,2]
[364949435,1749341432905,-440.0,0.00019178,2]
[364949436,1749341432916,-236.90869552,0.00019178,2]
[364949437,1749341432926,-440.0,0.00019178,2]
[364949438,1749341432936,-410.0,0.00019178,2]
[364949439,1749341432946,-440.0,0.00019178,2]
[364949440,1749341432956,-440.0,0.00019178,2]
[364949441,1749341432966,-440.0,0.00019178,2]
[364949442,1749341432976,-430.0,0.00019178,2]
[364949443,1749341432986,-430.0,0.00019178,2]
[364949444,1749341432995,-507.65934767,0.00019178,2]
[364949445,1749341433005,-327.9476566,0.00019178,2]
[364949446,1749341433015,-440.0,0.00019178,2]
[364949447,1749341433025,-197.30718596,0.00019178,2]
[364949448,1749341433034,-440.0,0.00019178,2]
[364949449,1749341433044,-440.0,0.00019178,2]
[364949450,1749341433054,-440.0,0.00019178,2]
[364949451,1749341433064,-440.0,0.00019178,2]
[364949452,1749341433074,-440.0,0.00019178,2]
[364949453,1749341433084,-440.0,0.00019178,2]
[364949454,1749341433094,-400.0,0.00019178,2]
[364949455,1749341433104,-410.0,0.00019178,2]
[364949456,1749341433114,-440.0,0.00019178,2]
[364949457,1749341433124,-440.0,0.00019178,2]
[364949458,1749341433133,-440.0,0.00019178,2]
[364949459,1749341433143,-440.0,0.00019178,2]
[364949460,1749341433153,-440.0,0.00019178,2]
[364949461,1749341433163,-400.0,0.00019178,2]
[364949462,1749341433176,-440.0,0.00019178,2]
[364949463,1749341433186,-440.0,0.00019178,2]
[364949464,1749341433196,-420.0,0.00019178,2]
[364949465,1749341433208,-440.0,0.00019178,2]
[364949466,1749341433370,-440.0,0.00019178,2]
[364949467,1749341433381,-440.0,0.00019178,2]
[364949468,1749341433391,-440.0,0.00019178,2]
[364949469,1749341433402,-490.41197676,0.00019178,2]
[364949470,1749341433411,-440.0,0.00019178,2]
[364949471,1749341433421,-440.0,0.00019178,2]
[364949472,1749341433432,-360.0,0.00019178,2]
[364949473,1749341433442,-440.0,0.00019178,2]
[364949474,1749341433452,-440.0,0.00019178,2]
[364949475,1749341433462,-440.0,0.00019178,2]
[364949476,1749341433473,-430.0,0.00019178,2]
[364949477,1749341433484,-440.0,0.00019178,2]
[364949478,1749341433494,-440.0,0.00019178,2]
[364949479,1749341433504,-440.0,0.00019178,2]
[364949480,1749341433514,-440.0,0.00019178,2]
[364949481,1749341433524,-440.0,0.00019178,2]
[364949482,1749341433534,-440.0,0.00019178,2]
[364949483,1749341433544,-440.0,0.00019178,2]
[364949484,1749341433554,-440.0,0.00019178,2]
[364949485,1749341433564,-440.0,0.00019178,2]
[364949486,1749341433573,-410.0,0.00019178,2]
[364949487,1749341433584,-440.0,0.00019178,2]
[364949488,1749341433594,-440.0,0.00019178,2]
[364949489,1749341433604,-440.0,0.00019178,2]
[364949490,1749341433614,-430.0,0.00019178,2]
[364949491,1749341433624,-430.0,0.00019178,2]
[364949492,1749341433634,-440.0,0.00019178,2]
[364949493,1749341433644,-440.0,0.00019178,2]
[364949494,1749341433654,-440.0,0.00019178,2]
[364949495,1749341433663,-440.0,0.00019178,2]
[364949496,1749341433673,-440.0,0.00019178,2]
[364949497,1749341433683,-440.0,0.00019178,2]
[364949498,1749341433693,-440.0,0.00019178,2]
[364949499,1749341433703,-440.0,0.00019178,2]
[364949500,1749341433713,-168.64,0.00019178,2]
[364949501,1749341433723,-430.0,0.00019178,2]
[364949502,1749341433732,-440.0,0.00019178,2]
[364949503,1749341433742,-440.0,0.00019178,2]
[364949504,1749341433752,-440.0,0.00019178,2]
[364949505,1749341433761,-340.0,0.00019178,2]
[364949506,1749341433771,-440.0,0.00019178,2]
[364949507,1749341433781,-440.0,0.00019178,2]
[364949508,1749341433790,-430.0,0.00019178,2]
[364949509,1749341433800,-440.0,0.00019178,2]
[364949510,1749341433809,-440.0,0.00019178,2]
[364949511,1749341433818,-440.0,0.00019178,2]
[364949512,1749341433829,-440.0,0.00019178,2]
[364949513,1749341433839,-440.0,0.00019178,2]
[364949514,1749341433848,-440.0,0.00019178,2]
[364949515,1749341433858,-440.0,0.00019178,2]
[364949516,1749341433867,-440.0,0.00019178,2]
[364949517,1749341433877,-490.97,0.00019178,2]
[364949518,1749341433886,-440.0,0.00019178,2]
[364949519,1749341433896,-440.0,0.00019178,2]
[364949520,1749341433905,-440.0,0.00019178,2]
[364949521,1749341433915,-442.58782504,0.00019178,2]
[364949522,1749341433924,-440.0,0.00019178,2]
[364949523,1749341433934,-440.0,0.00019178,2]
[364949524,1749341433943,-440.0,0.00019178,2]
[364949525,1749341433953,-404.86649742,0.00019178,2]
[364949526,1749341433963,-440.0,0.00019178,2]
[364949527,1749341433973,-440.0,0.00019178,2]
[364949528,1749341433983,-440.0,0.00019178,2]
[364949529,1749341433992,-440.0,0.00019178,2]
[364949530,1749341434002,-440.0,0.00019178,2]
[364949531,1749341434014,-440.0,0.00019178,2]
[364949532,1749341434024,-440.0,0.00019178,2]
[364949533,1749341434035,-413.29933048,0.00019178,2]
[364949534,1749341434045,-440.0,0.00019178,2]
[364949535,1749341434055,-500.0,0.00019178,2]
[364949536,1749341434065,-500.0,0.00019178,2]
[364949537,1749341434075,-500.0,0.00019178,2]
[364949538,1749341434085,-440.0,0.00019178,2]
[364949539,1749341434095,-507.00851311,0.00019178,2]
[364949540,1749341434105,-440.0,0.00019178,2]
[364949541,1749341434114,-410.0,0.00019178,2]
[364949542,1749341434124,-440.0,0.00019178,2]
[364949543,1749341434134,-440.0,0.00019178,2]
[364949544,1749341434143,-253.12376904,0.00019178,2]
[364949545,1749341434153,-440.0,0.00019178,2]
[364949546,1749341434162,-440.0,0.00019178,2]
[364949547,1749341434176,-440.0,0.00019178,2]
[364949548,1749341434186,-291.15789632,0.00019178,2]
[364949549,1749341434196,-440.0,0.00019178,2]
[364949550,1749341434207,-440.0,0.00019178,2]
[364949551,1749341434217,-440.0,0.00019178,2]
[364949552,1749341434227,-440.0,0.00019178,2]
[364949553,1749341434237,-378.92054944,0.00019178,2]
[364949554,1749341434248,-440.0,0.00019178,2]
[364949555,1749341434258,-440.0,0.00019178,2]
[364949556,1749341434267,-440.0,0.00019178,2]
[364949557,1749341434278,-440.0,0.00019178,2]
[364949558,1749341434287,-440.0,0.00019178,2]
[364949559,1749341434297,-413.20175949,0.00019178,2]
[364949560,1749341434307,-440.0,0.00019178,2]
[364949561,1749341434317,-419.05004746,0.00019178,2]
[364949562,1749341434327,-440.0,0.00019178,2]
[364949563,1749341434337,-440.0,0.00019178,2]
[364949564,1749341434347,-282.72482161,0.00019178,2]
[364949565,1749341434358,-440.0,0.00019178,2]
[364949566,1749341434368,-440.0,0.00019178,2]
[364949567,1749341434378,-440.0,0.00019178,2]
[364949568,1749341434388,-440.0,0.00019178,2]
[364949569,1749341434399,-440.0,0.00019178,2]
[364949570,1749341434408,-440.0,0.00019178,2]
[364949571,1749341434418,-440.0,0.00019178,2]
[364949572,1749341434429,-440.0,0.00019178,2]
[364949573,1749341434439,-420.0,0.00019178,2]
[364949574,1749341434449,-270.24167405,0.00019178,2]
[364949575,1749341434459,-440.0,0.00019178,2]
[364949576,1749341434469,-440.0,0.00019178,2]
[364949577,1749341434479,-440.0,0.00019178,2]
[364949578,1749341434488,-335.90702769,0.00019178,2]
[364949579,1749341434498,-440.0,0.00019178,2]
[364949580,1749341434507,-440.0,0.00019178,2]
[364949581,1749341434517,-440.0,0.00019178,2]
[364949582,1749341434527,-440.0,0.00019178,2]
[364949583,1749341434536,-440.0,0.00019178,2]
[364949584,1749341434546,-440.0,0.00019178,2]
[364949585,1749341434556,-440.0,0.00019178,2]
[364949586,1749341434565,-440.0,0.00019178,2]
[364949587,1749341434575,-440.0,0.00019178,2]
[364949588,1749341434585,-440.0,0.00019178,2]
[364949589,1749341434595,-2216.93,0.00019178,2]
[364949590,1749341434605,-440.0,0.00019178,2]
[364949591,1749341434614,-440.0,0.00019178,2]
[364949592,1749341434624,-440.0,0.00019178,2]
[364949593,1749341434634,-330.90097096,0.00019178,2]
[364949594,1749341434644,-440.0,0.00019178,2]
[364949595,1749341434654,-343.06438386,0.00019178,2]
[364949596,1749341434663,-161.81875033,0.00019178,2]
[364949597,1749341434673,-440.0,0.00019178,2]
[364949598,1749341434683,-440.0,0.00019178,2]
[364949599,1749341434694,-440.0,0.00019178,2]
[364949600,1749341434704,-440.0,0.00019178,2]
[364949601,1749341434714,-440.0,0.00019178,2]
[364949602,1749341434726,-440.0,0.00019178,2]
[364949603,1749341434736,-440.0,0.00019178,2]
[364949604,1749341434746,-440.0,0.00019178,2]
[364949605,1749341434756,-440.0,0.00019178,2]
[364949606,1749341434766,-451.44192296,0.00019178,2]
[364949607,1749341434775,-440.0,0.00019178,2]
[364949608,1749341434786,-440.0,0.00019178,2]
[364949609,1749341434795,-440.0,0.00019178,2]
[364949610,1749341434805,-430.0,0.00019178,2]
[364949611,1749341434815,-440.0,0.00019178,2]
[364949612,1749341434825,-440.0,0.00019178,2]
[364949613,1749341434835,-440.0,0.00019178,2]
[364949614,1749341434845,-440.0,0.00019178,2]
[364949615,1749341434855,-440.0,0.00019178,2]
[364949616,1749341434866,-450.68212147,0.00019178,2]
[364949617,1749341434876,-440.0,0.00019178,2]
[364949618,1749341434886,-1116.39,0.00019178,2]
[364949619,1749341434895,-440.0,0.00019178,2]
[364949620,1749341434905,-692.07,0.00019178,2]
[364949621,1749341434915,-440.0,0.00019178,2]
[364949622,1749341434924,-440.0,0.00019178,2]
[364949623,1749341434934,-430.0,0.00019178,2]
[364949624,1749341434944,-443.45,0.00019178,2]
[364949625,1749341434954,-440.0,0.00019178,2]
[364949626,1749341434964,-361.88937681,0.00019178,2]
[364949627,1749341434974,-440.0,0.00019178,2]
[364949628,1749341434983,-440.0,0.00019178,2]
[364949629,1749341434994,-440.0,0.00019178,2]
[364949630,1749341435004,-442.73193462,0.00019178,2]
[364949631,1749341435013,-440.0,0.00019178,2]
[364949632,1749341435024,-440.0,0.00019178,2]
[364949633,1749341435033,-440.0,0.00019178,2]